bitfinex/quotes_SOLUSD_20250326
["timestamp","ask_amount","ask_price","bid_price","bid_amount"]
[1743010383762,6.66,138.48,138.44,7.2233]
[1743010383763,82.0,138.46,138.44,7.2233]
[1743010383983,23.87258139,138.45,138.43,0.03]
[1743010384280,82.0,138.46,138.43,42.41006868]
[1743010384579,82.0,138.48,138.45,23.73041982]
[1743010384931,82.0,138.48,138.43,0.03]
[1743010385064,82.0,138.48,138.46,23.73041982]
[1743010385381,82.0,138.48,138.47,23.73041982]
[1743010385567,82.0,138.52,138.48,18.64964886]
[1743010385758,82.0,138.51,138.49,23.73041982]
[1743010385955,82.0,138.51,138.48,42.38006868]
[1743010386163,82.0,138.51,138.49,7.2207]
[1743010386598,82.0,138.51,138.49,30.95111982]
[1743010387468,0.14216157,138.5,138.45,25.2797]
[1743010387672,0.14216157,138.5,138.46,23.73041982]
[1743010387983,23.87258139,138.5,138.45,49.01011982]
[1743010388167,0.14216157,138.48,138.45,7.2228]
[1743010388373,6.78,138.47,138.45,7.2228]
[1743010388586,82.0,138.46,138.45,30.95321982]
[1743010388788,82.0,138.46,138.45,49.60286868]
[1743010389082,44.255,138.5,138.46,18.64964886]
[1743010389383,44.255,138.5,138.49,23.73041982]
[1743010389774,44.255,138.5,138.49,42.38006868]
[1743010389976,6.78,138.52,138.49,42.38006868]
[1743010390166,6.78,138.52,138.5,30.95061982]
[1743010390366,6.78,138.52,138.5,7.2202]
[1743010391071,6.78,138.52,138.48,30.95161982]
[1743010391385,6.78,138.52,138.5,23.73041982]
[1743010391986,6.78,138.52,138.48,49.00471982]
[1743010392172,68.12758139,138.51,138.47,7.2217]
[1743010392377,0.14216157,138.49,138.46,7.222]
[1743010392687,44.255,138.48,138.46,7.222]
[1743010392865,6.78,138.47,138.46,7.222]
[1743010393206,6.78,138.47,138.45,7.2226]
[1743010393485,6.78,138.47,138.45,30.95301982]
[1743010394788,44.255,138.48,138.46,42.38006868]
[1743010395007,44.255,138.48,138.47,23.73041982]
[1743010395401,44.255,138.48,138.46,42.38006868]
[1743010396490,44.255,138.48,138.47,30.95211982]
[1743010397695,44.255,138.48,138.47,7.2217]
[1743010398788,44.255,138.48,138.47,30.95211982]
[1743010399095,44.255,138.48,138.47,7.2217]
[1743010400392,44.255,138.48,138.46,7.222]
[1743010400686,44.255,138.48,138.45,23.73041982]
[1743010400687,44.255,138.48,138.45,7.2226]
[1743010401278,44.255,138.48,138.44,30.95351982]
[1743010401495,44.255,138.47,138.44,30.95351982]
[1743010401684,44.255,138.47,138.44,7.2231]
[1743010401887,44.255,138.46,138.44,7.2231]
[1743010402094,44.255,138.45,138.43,30.98411982]
[1743010402271,51.015,138.45,138.43,7.2538]
[1743010402472,51.015,138.45,138.43,30.98421982]
[1743010402668,51.015,138.45,138.43,7.2538]
[1743010403275,51.015,138.45,138.43,30.98421982]
[1743010403481,51.015,138.45,138.44,23.73041982]
[1743010404285,44.255,138.45,138.44,23.73041982]
[1743010405196,44.255,138.45,138.44,30.95371982]
[1743010407195,44.255,138.45,138.44,23.73041982]
[1743010407422,44.255,138.44,138.43,30.98401982]
[1743010408199,44.255,138.44,138.43,7.2536]
[1743010408383,44.255,138.44,138.43,0.03]
[1743010408590,44.255,138.44,138.43,7.2538]
[1743010409191,44.39716157,138.44,138.43,0.03]
[1743010409389,0.14216157,138.44,138.43,0.03]
[1743010411301,52.94804296,138.44,138.43,0.03]
[1743010412101,208.39769182,138.44,138.43,0.03]
[1743010412293,208.39769182,138.44,138.39,2.3954606]
[1743010412294,20.0,138.4,138.39,2.3954606]
[1743010412485,0.28432314,138.39,138.25,2.0]
[1743010412686,23.87258139,138.28,138.25,2.0]
[1743010412991,30.49041982,138.27,138.25,1.5]
[1743010413202,69.17083964,138.26,138.24,2.17669275]
[1743010413422,167.24642314,138.25,138.24,2.17669275]
[1743010413704,0.14216157,138.26,138.24,2.17669275]
[1743010413915,6.92,138.27,138.24,33.14071257]
[1743010414107,0.14216157,138.3,138.24,9.41029275]
[1743010414292,20.0,138.25,138.24,2.17669275]
[1743010414602,0.28432314,138.24,138.22,0.04251474]
[1743010414795,24.01474296,138.23,138.22,0.04251474]
[1743010415104,193.94974995,138.23,138.22,0.04251474]
[1743010415303,0.28432314,138.21,138.2,0.05]
[1743010415516,38.50010109,138.21,138.2,0.05]
[1743010415822,0.14216157,138.21,138.2,0.05]
[1743010416110,20.14216157,138.21,138.2,0.05]
[1743010416281,58.50010109,138.21,138.2,0.05]
[1743010416903,20.28432314,138.21,138.2,0.05]
[1743010417216,136.8,138.27,138.2,0.05]
[1743010417384,0.14216157,138.28,138.24,38.21577795]
[1743010417693,0.14216157,138.28,138.2,18.84181043]
[1743010418001,136.8,138.33,138.27,38.21577795]
[1743010418210,0.14216157,138.32,138.29,38.21577795]
[1743010418390,20.0,138.32,138.29,38.21577795]
[1743010418700,0.14216157,138.31,138.24,18.64964886]
[1743010418918,38.35793952,138.31,138.26,38.21577795]
[1743010419080,38.35793952,138.3,138.23,18.64964886]
[1743010419286,0.14216157,138.28,138.24,7.2337]
[1743010419486,38.21577795,138.32,138.26,38.21577795]
[1743010419804,89.24216157,138.31,138.29,38.21577795]
[1743010419985,82.0,138.3,138.29,38.21577795]
[1743010421205,82.0,138.3,138.29,56.86542681]
[1743010421396,82.0,138.3,138.29,64.09652681]
[1743010422685,81.97138278,138.3,138.29,45.44687795]
[1743010422894,81.97138278,138.3,138.29,7.2311]
[1743010423089,81.97138278,138.3,138.27,18.0803]
[1743010423090,81.97138278,138.3,138.27,38.21577795]
[1743010423388,45.45793952,138.32,138.26,38.21577795]
[1743010423389,82.11354435,138.29,138.26,38.21577795]
[1743010423596,81.97138278,138.28,138.26,38.21577795]
[1743010423820,7.08,138.27,138.25,56.86542681]
[1743010425108,7.08,138.27,138.26,38.21577795]
[1743010425290,7.08,138.27,138.25,38.21577795]
[1743010425901,7.08,138.27,138.24,7.2337]
[1743010426213,81.97138278,138.26,138.24,7.2337]
[1743010426390,81.97138278,138.25,138.24,7.2337]
[1743010426892,81.97138278,138.25,138.24,45.44947795]
[1743010427090,7.08,138.27,138.25,18.64964886]
[1743010427386,7.08,138.27,138.26,45.44847795]
[1743010427591,7.22216157,138.27,138.25,7.2331]
[1743010427807,82.0,138.26,138.24,45.44947795]
[1743010428295,82.0,138.26,138.25,38.21577795]
[1743010429416,7.08,138.27,138.25,45.44897795]
[1743010429599,7.08,138.27,138.26,38.21577795]
[1743010430796,7.08,138.27,138.26,45.44847795]
[1743010431011,82.0,138.28,138.26,45.44847795]
[1743010431230,6.3371,138.28,138.27,38.21577795]
[1743010431520,7.12,138.31,138.27,38.21577795]
[1743010431718,7.12,138.31,138.29,38.21577795]
[1743010432621,7.12,138.31,138.28,38.21577795]
[1743010432808,7.12,138.31,138.29,7.2311]
[1743010433695,7.12,138.31,138.29,45.44687795]
[1743010434831,6.47926157,138.3,138.27,18.0793]
[1743010435013,6.3371,138.29,138.26,7.2327]
[1743010435219,44.55287795,138.29,138.26,7.2327]
[1743010435612,6.3371,138.29,138.26,25.3145]
[1743010436434,6.3371,138.28,138.26,63.53027795]
[1743010436738,6.3371,138.27,138.26,25.3145]
[1743010437520,0.14216157,138.27,138.26,7.2327]
[1743010437921,0.14216157,138.27,138.24,7.2337]
[1743010438126,7.1,138.26,138.24,7.2337]
[1743010438330,82.14216157,138.25,138.21,7.2353]
[1743010438505,82.14216157,138.25,138.22,38.21577795]
[1743010438705,82.0,138.25,138.23,38.21577795]
[1743010439039,82.0,138.24,138.23,7.2343]
[1743010439331,82.0,138.24,138.23,45.45007795]
[1743010440237,7.1,138.25,138.23,45.45007795]
[1743010440430,45.554,138.28,138.24,38.21577795]
[1743010440621,45.554,138.27,138.24,18.64964886]
[1743010440942,52.654,138.29,138.26,38.21577795]
[1743010441141,52.654,138.29,138.28,38.21577795]
[1743010441835,52.654,138.29,138.26,18.64964886]
[1743010442010,52.654,138.29,138.28,38.21577795]
[1743010442817,7.1,138.29,138.28,38.21577795]
[1743010443012,7.1,138.29,138.28,45.44747795]
[1743010443216,0.063,138.3,138.29,18.64964886]
[1743010443439,0.063,138.3,138.29,56.86542681]
[1743010445336,0.063,138.3,138.29,64.09652681]
[1743010447123,7.1,138.36,138.29,82.17442681]
[1743010447324,7.1,138.36,138.34,38.21577795]
[1743010448040,7.1,138.36,138.35,38.21577795]
[1743010448243,7.1,138.36,138.29,43.95864886]
[1743010448441,52.634,138.37,138.34,38.21577795]
[1743010448742,45.554,138.36,138.35,38.21577795]
[1743010449318,45.69616157,138.35,138.29,7.2311]
[1743010449519,45.554,138.34,138.3,38.21577795]
[1743010449930,45.554,138.34,138.29,7.2311]
[1743010450131,45.554,138.34,138.3,38.21577795]
[1743010450335,38.21577795,138.33,138.28,64.09702681]
[1743010450643,7.08,138.32,138.28,38.21577795]
[1743010450839,45.554,138.31,138.29,38.21577795]
[1743010452346,45.554,138.31,138.3,38.21577795]
[1743010452639,45.554,138.3,138.26,38.21577795]
[1743010452846,83.76977795,138.3,138.24,18.64964886]
[1743010453028,45.554,138.29,138.26,38.21577795]
[1743010453742,45.554,138.28,138.26,38.21577795]
[1743010453943,45.554,138.28,138.27,38.21577795]
[1743010455229,45.554,138.28,138.26,7.2326]
[1743010455424,45.554,138.28,138.26,45.44837795]
[1743010456146,45.554,138.28,138.26,38.21577795]
[1743010456649,52.594,138.27,138.24,45.47927795]
[1743010456852,52.594,138.27,138.24,38.24577795]
[1743010457160,38.21577795,138.25,138.24,0.03]
[1743010457319,83.76977795,138.26,138.24,0.03]
[1743010457639,45.554,138.26,138.24,0.03]
[1743010460227,45.554,138.25,138.24,0.03]
[1743010461623,45.554,138.25,138.24,38.24577795]
[1743010462029,52.574,138.28,138.24,38.24577795]
[1743010462339,52.574,138.28,138.26,38.21577795]
[1743010462530,45.554,138.28,138.24,0.03]
[1743010462850,45.554,138.28,138.26,38.21577795]
[1743010463147,45.554,138.28,138.25,38.21577795]
[1743010463452,83.76977795,138.28,138.24,38.24577795]
[1743010463743,45.554,138.28,138.24,45.47937795]
[1743010463952,45.554,138.28,138.25,38.21577795]
[1743010465427,45.554,138.28,138.27,38.21577795]
[1743010465856,0.20516157,138.3,138.27,63.52847795]
[1743010465857,0.063,138.3,138.27,63.52847795]
[1743010466038,0.063,138.3,138.29,56.86542681]
[1743010466851,0.063,138.3,138.29,23.82840268]
[1743010467265,0.063,138.3,138.27,25.3127]
[1743010467557,45.554,138.29,138.27,31.06060268]
[1743010467737,45.554,138.29,138.28,7.2317]
[1743010468457,45.554,138.29,138.28,31.06010268]
[1743010468839,45.554,138.29,138.28,7.2317]
[1743010469040,45.554,138.29,138.28,31.06010268]
[1743010469349,45.554,138.29,138.28,45.37027521]
[1743010469742,45.554,138.29,138.27,7.232]
[1743010469943,45.554,138.29,138.25,38.13857521]
[1743010470147,45.554,138.28,138.25,7.2332]
[1743010470348,45.554,138.28,138.25,45.37177521]
[1743010470545,45.554,138.28,138.27,38.13857521]
[1743010470749,0.063,138.3,138.27,56.78822407]
[1743010470948,0.063,138.3,138.29,38.13857521]
[1743010471951,0.063,138.3,138.29,7.2311]
[1743010472263,0.063,138.3,138.29,45.36967521]
[1743010473059,7.083,138.3,138.26,7.2327]
[1743010473259,7.083,138.3,138.28,38.13857521]
[1743010473460,7.083,138.3,138.29,38.13857521]
[1743010474265,7.083,138.3,138.29,45.36967521]
[1743010474564,7.083,138.3,138.27,45.37077521]
[1743010475481,0.063,138.3,138.29,38.13857521]
[1743010476054,0.063,138.3,138.29,45.36967521]
[1743010476742,0.063,138.3,138.29,7.2311]
[1743010476948,0.063,138.3,138.29,45.36967521]
[1743010477362,0.063,138.3,138.29,64.01932407]
[1743010477867,45.554,138.34,138.33,38.13857521]
[1743010478068,7.04,138.36,138.33,45.36757521]
[1743010478275,7.04,138.36,138.35,38.13857521]
[1743010478568,52.594,138.37,138.35,38.13857521]
[1743010478750,45.554,138.37,138.36,38.13857521]
[1743010479469,45.554,138.4,138.36,38.13857521]
[1743010479770,7.04,138.39,138.37,38.13857521]
[1743010480172,7.04,138.39,138.38,7.2264]
[1743010480382,7.04,138.39,138.38,45.36497521]
[1743010481361,7.04,138.39,138.37,45.36527521]
[1743010482074,7.04,138.39,138.36,45.36587521]
[1743010482569,45.554,138.4,138.37,38.13857521]
[1743010482777,7.02,138.39,138.36,7.2273]
[1743010483072,7.02,138.39,138.36,45.36587521]
[1743010483572,52.574,138.39,138.36,45.36587521]
[1743010485078,52.574,138.39,138.37,38.13857521]
[1743010485247,45.554,138.39,138.38,38.13857521]
[1743010485671,7.0,138.41,138.38,38.13857521]
[1743010485972,45.554,138.42,138.4,38.13857521]
[1743010485973,52.554,138.42,138.4,38.13857521]
[1743010486173,52.554,138.42,138.41,38.13857521]
[1743010486555,7.0,138.42,138.41,38.13857521]
[1743010486754,45.617,138.44,138.41,38.13857521]
[1743010486949,52.617,138.44,138.42,38.13857521]
[1743010487154,52.617,138.44,138.42,45.36267521]
[1743010487367,52.617,138.44,138.42,7.2241]
[1743010487879,52.617,138.44,138.41,45.36317521]
[1743010488060,52.617,138.44,138.41,38.13857521]
[1743010488264,90.75557521,138.44,138.4,7.225]
[1743010488776,52.617,138.44,138.41,38.13857521]
[1743010488976,52.617,138.44,138.42,38.13857521]
[1743010489180,52.617,138.44,138.43,45.36237521]
[1743010489489,45.617,138.44,138.43,45.36237521]
[1743010489659,45.617,138.44,138.43,7.2238]
[1743010489863,45.617,138.44,138.42,45.36267521]
[1743010490276,109.90563678,138.43,138.33,7.229]
[1743010490465,38.13857521,138.38,138.33,38.13857521]
[1743010490674,90.67257521,138.37,138.33,38.13857521]
[1743010490875,52.534,138.37,138.33,38.13857521]
[1743010491664,45.554,138.36,138.32,46.17417521]
[1743010491866,83.69257521,138.35,138.3,38.13857521]
[1743010492064,83.69257521,138.34,138.29,38.13857521]
[1743010492988,45.554,138.34,138.31,38.13857521]
[1743010493274,6.98,138.33,138.3,38.16857521]
[1743010494481,6.98,138.33,138.3,45.39907521]
[1743010495077,6.98,138.33,138.31,38.13857521]
[1743010495253,45.554,138.37,138.32,38.13857521]
[1743010495459,45.554,138.37,138.35,38.13857521]
[1743010496176,45.554,138.39,138.36,38.13857521]
[1743010496355,45.554,138.39,138.38,38.13857521]
[1743010496556,6.98,138.41,138.38,38.13857521]
[1743010496784,6.98,138.41,138.39,38.13857521]
[1743010497579,0.14216157,138.39,138.33,6.337]
[1743010497772,45.554,138.38,138.34,38.13857521]
[1743010497971,45.554,138.37,138.34,38.13857521]
[1743010498786,45.554,138.37,138.35,38.13857521]
[1743010499578,45.554,138.37,138.33,38.13857521]
[1743010500186,7.0,138.36,138.33,38.13857521]
[1743010500488,7.0,138.36,138.34,38.13857521]
[1743010500785,45.13857521,138.36,138.31,7.2299]
[1743010500969,83.69257521,138.35,138.31,7.2299]
[1743010501178,83.69257521,138.35,138.3,45.39897521]
[1743010501495,45.554,138.34,138.31,38.13857521]
[1743010501881,45.554,138.34,138.3,45.39897521]
[1743010502400,38.13857521,138.31,138.3,0.03]
[1743010502567,45.11857521,138.31,138.3,0.03]
[1743010503375,0.14216157,138.28,138.27,0.03]
[1743010503597,38.28073678,138.28,138.27,0.03]
[1743010504700,6.96,138.29,138.27,38.16857521]
[1743010504885,6.96,138.29,138.27,0.03]
[1743010505283,6.96,138.29,138.27,38.16857521]
[1743010505490,6.96,138.29,138.28,7.2317]
[1743010506194,6.96,138.29,138.28,64.01992407]
[1743010506674,6.98,138.33,138.28,82.09912407]
[1743010506873,6.98,138.33,138.3,38.13857521]
[1743010507097,6.96,138.33,138.29,38.13857521]
[1743010507479,6.96,138.33,138.27,38.16857521]
[1743010507480,38.13857521,138.32,138.27,38.16857521]
[1743010507694,38.13857521,138.32,138.28,7.2315]
[1743010507997,6.96,138.33,138.29,38.13857521]
[1743010508994,38.13857521,138.31,138.27,0.03]
[1743010509191,38.13857521,138.3,138.27,0.03]
[1743010509400,120.13857521,138.29,138.27,0.03]
[1743010509585,6.98,138.28,138.27,0.03]
[1743010509781,6.98,138.28,138.27,38.16857521]
[1743010510478,89.0,138.31,138.27,38.16857521]
[1743010510681,89.0,138.31,138.28,38.13857521]
[1743010511509,82.0,138.31,138.28,45.36987521]
[1743010511677,7.0,138.3,138.28,45.36987521]
[1743010512093,7.0,138.3,138.29,38.13857521]
[1743010512596,7.0,138.3,138.28,25.88094886]
[1743010512774,7.0,138.3,138.29,38.13857521]
[1743010512979,7.0,138.3,138.29,56.78822407]
[1743010513178,7.103,138.34,138.29,56.78822407]
[1743010513406,89.103,138.34,138.3,38.13857521]
[1743010513593,120.13857521,138.33,138.28,38.13857521]
[1743010514183,120.13857521,138.33,138.29,38.13857521]
[1743010514380,82.0,138.33,138.29,38.13857521]
[1743010514575,82.0,138.33,138.32,38.13857521]
[1743010514992,82.0,138.33,138.31,38.13857521]
[1743010515413,82.0,138.33,138.32,38.13857521]
[1743010515599,0.063,138.34,138.33,7.229]
[1743010515813,0.063,138.34,138.33,45.36757521]
[1743010516404,0.063,138.34,138.31,38.13857521]
[1743010516603,0.063,138.34,138.3,38.13857521]
[1743010516807,0.063,138.34,138.31,38.13857521]
[1743010517801,0.063,138.34,138.3,25.3072]
[1743010518007,0.063,138.34,138.3,38.13857521]
[1743010518310,38.13857521,138.33,138.29,7.231]
[1743010518506,120.13857521,138.33,138.29,7.231]
[1743010518704,82.0,138.32,138.28,45.39997521]
[1743010519011,7.06,138.31,138.28,45.39997521]
[1743010519213,89.06,138.31,138.28,45.39997521]
[1743010519502,120.13857521,138.3,138.28,0.03]
[1743010519911,82.0,138.3,138.28,0.03]
[1743010520208,82.0,138.3,138.28,38.16857521]
[1743010520420,82.0,138.3,138.28,0.03]
[1743010521690,82.0,138.3,138.28,38.16857521]
[1743010522189,82.0,138.3,138.28,0.03]
[1743010522416,89.2311,138.3,138.28,0.03]
[1743010522700,120.13857521,138.3,138.28,0.03]
[1743010523289,82.0,138.3,138.28,0.03]
[1743010524295,120.13857521,138.3,138.28,0.03]
[1743010524610,120.28073678,138.29,138.28,0.03]
[1743010524904,38.28073678,138.29,138.28,0.03]
[1743010526211,45.51183678,138.29,138.28,0.03]
[1743010526987,67.22183678,138.29,138.28,0.03]
[1743010528387,45.51183678,138.29,138.28,0.03]
[1743010529691,38.28073678,138.29,138.28,0.03]
[1743010530105,45.51183678,138.29,138.28,0.03]
[1743010531291,0.14216157,138.29,138.28,0.03]
[1743010531490,7.04,138.29,138.28,0.03]
[1743010532205,45.32073678,138.29,138.28,0.03]
[1743010534701,52.55183678,138.29,138.28,0.03]
[1743010536012,45.32073678,138.29,138.28,0.03]
[1743010536185,7.04,138.29,138.28,0.03]
[1743010536608,20.0,138.29,138.28,38.16857521]
[1743010536814,7.04,138.3,138.28,38.16857521]
[1743010537413,7.04,138.3,138.29,7.2311]
[1743010537804,7.04,138.3,138.28,7.2614]
[1743010538317,7.04,138.3,138.28,45.39997521]
[1743010539108,7.04,138.3,138.28,7.2614]
[1743010540115,7.04,138.3,138.28,0.03]
[1743010540416,45.17857521,138.3,138.28,0.03]
[1743010540920,30.8852429,138.3,138.28,0.03]
[1743010541127,7.04,138.3,138.28,0.03]
[1743010541607,7.04,138.3,138.28,23.8752429]
[1743010542003,7.04,138.3,138.28,0.03]
[1743010543623,7.04,138.3,138.29,7.2311]
[1743010545310,7.04,138.3,138.28,0.03]
[1743010546409,30.8852429,138.3,138.28,0.03]
[1743010546619,23.8452429,138.29,138.28,0.03]
[1743010546921,30.8852429,138.3,138.28,0.03]
[1743010547323,7.04,138.3,138.28,0.03]
[1743010547915,7.04,138.3,138.28,23.8752429]
[1743010548530,7.04,138.3,138.29,23.8452429]
[1743010548903,7.04,138.3,138.28,23.8752429]
[1743010549509,7.04,138.3,138.29,7.2311]
[1743010552534,82.0,138.31,138.29,31.0763429]
[1743010552909,82.0,138.31,138.29,7.2311]
[1743010553109,88.96,138.31,138.29,7.2311]
[1743010553537,0.063,138.3,138.29,7.2311]
[1743010553711,0.063,138.3,138.29,31.0763429]
[1743010555437,0.063,138.3,138.29,7.2311]
[1743010557427,0.063,138.3,138.29,31.0763429]
[1743010557624,0.063,138.3,138.28,23.8752429]
[1743010558932,0.063,138.3,138.29,23.8452429]
[1743010559835,0.063,138.3,138.29,7.2311]
[1743010560236,0.063,138.3,138.28,0.03]
[1743010560613,0.063,138.3,138.28,23.8752429]
[1743010560813,0.063,138.3,138.29,23.8452429]
[1743010561113,0.063,138.3,138.28,7.2616]
[1743010561331,0.063,138.3,138.28,0.03]
[1743010563123,0.063,138.3,138.29,23.8452429]
[1743010564427,0.063,138.3,138.29,31.0763429]
[1743010564837,0.063,138.3,138.29,49.72599176]
[1743010565052,82.063,138.34,138.3,18.64964886]
[1743010565233,82.063,138.34,138.33,23.8452429]
[1743010565439,82.063,138.34,138.32,23.8452429]
[1743010565736,82.063,138.34,138.33,23.8452429]
[1743010566315,82.063,138.34,138.33,31.0742429]
[1743010566525,0.063,138.34,138.33,49.72389176]
[1743010567831,0.063,138.34,138.33,31.0742429]
[1743010569038,0.063,138.34,138.33,49.72389176]
[1743010571334,0.063,138.34,138.33,7.229]
[1743010571659,0.063,138.34,138.32,31.0745429]
[1743010573441,0.063,138.34,138.33,23.8452429]
[1743010574024,0.063,138.34,138.33,42.49489176]
[1743010574343,6.88,138.39,138.34,18.64964886]
[1743010574525,6.88,138.39,138.38,23.8452429]
[1743010574836,6.88,138.39,138.37,18.64964886]
[1743010575225,6.88,138.39,138.36,18.64964886]
[1743010575431,6.88,138.39,138.36,42.49489176]
[1743010575631,6.88,138.39,138.37,7.227]
[1743010576839,6.88,138.39,138.36,23.8452429]
[1743010577025,6.88,138.39,138.32,106.4452429]
[1743010577026,20.0,138.36,138.34,23.8452429]
[1743010577424,82.0,138.38,138.35,42.49489176]
[1743010577646,82.0,138.38,138.37,42.49489176]
[1743010577945,6.943,138.39,138.37,49.72189176]
[1743010578639,6.943,138.39,138.36,31.0725429]
[1743010579234,6.943,138.39,138.37,23.8452429]
[1743010580063,6.943,138.39,138.38,31.0716429]
[1743010580229,6.943,138.39,138.38,7.2264]
[1743010580425,0.063,138.39,138.38,49.72129176]
[1743010583340,0.063,138.39,138.38,42.49489176]
[1743010583541,0.063,138.39,138.38,49.72129176]
[1743010583852,0.063,138.39,138.38,42.49489176]
[1743010584236,0.063,138.39,138.38,49.72129176]
[1743010584654,0.063,138.39,138.38,73.56653466]
[1743010586560,0.063,138.39,138.38,49.72129176]
[1743010587147,0.063,138.44,138.39,18.64964886]
[1743010587461,0.063,138.44,138.43,23.8452429]
[1743010588752,0.063,138.44,138.43,42.49489176]
[1743010588951,0.063,138.44,138.43,23.8452429]
[1743010589162,0.063,138.44,138.42,18.64964886]
[1743010589347,0.063,138.44,138.4,23.8452429]
[1743010589548,82.063,138.44,138.39,18.64964886]
[1743010589759,82.063,138.44,138.4,23.8452429]
[1743010590642,105.9082429,138.44,138.38,18.64964886]
[1743010590842,105.9082429,138.44,138.37,7.2269]
[1743010590843,105.9082429,138.44,138.4,23.8452429]
[1743010591049,23.8452429,138.41,138.36,42.49489176]
[1743010591258,6.92,138.4,138.38,18.64964886]
[1743010591761,6.92,138.4,138.37,23.8452429]
[1743010591957,6.92,138.4,138.38,23.8452429]
[1743010592140,6.92,138.4,138.37,42.49489176]
[1743010593239,37.9906429,138.4,138.37,18.64964886]
[1743010593639,6.92,138.4,138.37,23.8452429]
[1743010593840,6.92,138.4,138.36,42.49489176]
[1743010594152,6.92,138.4,138.37,18.64964886]
[1743010596840,6.92,138.4,138.37,23.8452429]
[1743010597043,6.92,138.4,138.38,23.8452429]
[1743010597246,6.92,138.4,138.39,18.64964886]
[1743010598439,6.92,138.4,138.39,42.49489176]
[1743010598952,6.92,138.4,138.39,18.64964886]
[1743010600063,6.92,138.4,138.39,42.49489176]
[1743010600262,6.92,138.4,138.39,18.64964886]
[1743010601881,14.1454,138.4,138.39,18.64964886]
[1743010602080,38.13280447,138.4,138.38,0.03]
[1743010602282,23.98740447,138.39,138.38,0.03]
[1743010602650,23.8452429,138.39,138.38,0.03]
[1743010602851,37.9906429,138.4,138.38,0.03]
[1743010603083,6.92,138.4,138.38,0.03]
[1743010603260,30.7652429,138.4,138.38,0.03]
[1743010603461,37.9907429,138.4,138.38,0.03]
[1743010604571,30.7652429,138.4,138.38,0.03]
[1743010606095,6.92,138.4,138.38,0.03]
[1743010606775,30.7652429,138.4,138.38,0.03]
[1743010607075,6.92,138.4,138.38,0.03]
[1743010609271,30.7652429,138.4,138.38,0.03]
[1743010609684,6.92,138.4,138.38,0.03]
[1743010611277,30.7652429,138.4,138.38,0.03]
[1743010611876,6.92,138.4,138.38,0.03]
[1743010612464,20.0,138.4,138.39,18.64964886]
[1743010612673,6.9,138.41,138.39,18.64964886]
[1743010613377,6.9,138.41,138.39,25.87534886]
[1743010615065,0.063,138.44,138.4,18.64964886]
[1743010615066,6.88,138.43,138.4,18.64964886]
[1743010615276,20.0,138.41,138.4,18.64964886]
[1743010615598,20.0,138.41,138.39,7.2257]
[1743010616693,20.0,138.41,138.4,18.64964886]
[1743010617557,20.0,138.41,138.4,7.2254]
[1743010618666,0.0001,138.44,138.43,18.64964886]
[1743010619000,0.0001,138.44,138.43,33.88280762]
[1743010620677,0.0001,138.44,138.43,18.64964886]
[1743010620987,20.14216157,138.41,138.38,0.03]
[1743010621184,15.23315876,138.39,138.38,0.03]
[1743010621484,6.92,138.4,138.38,15.26315876]
[1743010621686,6.92,138.4,138.39,33.88280762]
[1743010622274,6.92,138.4,138.39,18.64964886]
[1743010622472,6.92,138.4,138.39,41.10870762]
[1743010622888,6.92,138.4,138.39,25.87554886]
[1743010624801,6.92,138.4,138.39,18.64964886]
[1743010625598,6.92,138.4,138.39,25.87554886]
[1743010625793,6.92,138.4,138.38,0.03]